bitfinex-derivatives/quotes_BTCF0:USTF0_20250827
["timestamp","ask_amount","ask_price","bid_price","bid_amount"]
[1756315085301,0.93907511,111970.0,111960.0,0.9993785]
[1756315085501,1.02837071,111970.0,111960.0,0.9834685]
[1756315085706,1.27837071,111970.0,111960.0,0.0932985]
[1756315085894,1.30525723,111970.0,111960.0,0.004]
[1756315086098,1.30525723,111970.0,111960.0,0.0933036]
[1756315086495,2.13409723,111970.0,111960.0,0.0933036]
[1756315087304,2.13509723,111970.0,111960.0,0.0893036]
[1756315087905,1.30625723,111970.0,111960.0,0.0893036]
[1756315088108,2.13509723,111970.0,111960.0,0.0893036]
[1756315088298,1.30625723,111970.0,111960.0,0.1051236]
[1756315088494,0.96696163,111970.0,111960.0,0.1665436]
[1756315088699,0.50214,111970.0,111960.0,0.1665436]
[1756315090502,0.5914357,111970.0,111960.0,0.1665436]
[1756315090695,0.5914357,111970.0,111960.0,0.1051236]
[1756315090902,1.02937081,111970.0,111950.0,0.0387]
[1756315091101,1.02937871,111960.0,111950.0,0.9340665]
[1756315091293,0.94007511,111960.0,111950.0,0.9937965]
[1756315091900,0.50214,111960.0,111950.0,0.9953865]
[1756315092102,0.94007511,111960.0,111950.0,0.9953865]
[1756315092302,0.50214,111960.0,111950.0,0.9953865]
[1756315092607,0.94007511,111960.0,111950.0,0.9953865]
[1756315093198,1.02937881,111960.0,111950.0,0.0903065]
[1756315093605,1.03833564,111960.0,111950.0,0.0903065]
[1756315094000,1.03833564,111960.0,111950.0,0.1220365]
[1756315095002,0.60040053,111960.0,111950.0,0.1061265]
[1756315095302,0.60040053,111960.0,111950.0,0.001]
[1756315095303,1.80627075,111960.0,111950.0,0.001]
[1756315095608,1.36833564,111960.0,111950.0,0.001]
[1756315095800,1.35833564,111960.0,111950.0,0.0903117]
[1756315096205,2.01964053,111960.0,111950.0,0.1675517]
[1756315096505,2.45757564,111960.0,111950.0,0.0903117]
[1756315096705,2.45857564,111960.0,111950.0,0.0893117]
[1756315096902,2.46057564,111960.0,111950.0,0.0893117]
[1756315097103,2.46057564,111960.0,111950.0,0.1437317]
[1756315097311,2.46057564,111960.0,111950.0,0.1649617]
[1756315098009,2.46057564,111960.0,111950.0,0.1210417]
[1756315098208,2.46057564,111960.0,111950.0,0.0893117]
[1756315098404,2.19057564,111960.0,111950.0,0.0893117]
[1756315098707,2.19057564,111960.0,111950.0,0.1649617]
[1756315098708,1.68264053,111960.0,111950.0,0.1649617]
[1756315098912,1.29133564,111960.0,111950.0,0.1665517]
[1756315099108,0.51409683,111960.0,111950.0,0.1665517]
[1756315100005,0.60340043,111960.0,111950.0,0.1665517]
[1756315100610,0.5620436,111960.0,111950.0,0.9971117]
[1756315100805,0.5944436,111960.0,111950.0,0.9971117]
[1756315102110,1.03237871,111960.0,111950.0,0.9971117]
[1756315102314,0.5944436,111960.0,111950.0,0.9971117]
[1756315102607,1.03237871,111960.0,111950.0,0.9971117]
[1756315103011,0.5620436,111960.0,111950.0,1.43504681]
[1756315103207,0.5944436,111960.0,111950.0,1.43604681]
[1756315103406,0.5944436,111960.0,111950.0,1.43504681]
[1756315104318,0.5944436,111960.0,111950.0,0.9971117]
[1756315105019,0.50514,111960.0,111950.0,0.9971117]
[1756315105215,0.44975,111960.0,111950.0,1.68604681]
[1756315105520,0.12135,111960.0,111950.0,1.68604681]
[1756315106220,0.04753,111960.0,111950.0,1.68604681]
[1756315106919,0.03132,111960.0,111950.0,1.68604681]
[1756315107217,0.03132,111960.0,111950.0,2.04684681]
[1756315107518,0.03132,111960.0,111950.0,2.04632681]
[1756315108118,0.03132,111960.0,111950.0,1.21628681]
[1756315108319,0.03132,111960.0,111950.0,2.04632681]
[1756315109019,0.03032,111960.0,111950.0,2.04632681]
[1756315109419,0.02832,111960.0,111950.0,1.21628681]
[1756315109615,0.02932,111960.0,111950.0,2.04592681]
[1756315109818,0.02932,111960.0,111950.0,2.04588681]
[1756315110520,0.02932,111960.0,111950.0,1.21628681]
[1756315110916,0.02932,111960.0,111950.0,2.04568681]
[1756315111119,0.05344,111960.0,111950.0,2.04568681]
[1756315111319,0.08762,111960.0,111950.0,2.04568681]
[1756315111521,0.0635,111960.0,111950.0,2.04568681]
[1756315112021,0.0635,111960.0,111950.0,2.04552681]
[1756315112822,0.02932,111960.0,111950.0,2.04552681]
[1756315115324,0.001,111960.0,111950.0,2.04552681]
[1756315115516,0.04647087,111970.0,111960.0,0.1302735]
[1756315115714,0.04637087,111970.0,111960.0,0.96710861]
[1756315116223,0.04637087,111970.0,111960.0,1.79614861]
[1756315116615,0.01888087,111970.0,111960.0,1.79614861]
[1756315116817,0.00397087,111970.0,111960.0,3.09408372]
[1756315117018,0.001,111970.0,111960.0,3.09408372]
[1756315117216,0.02859,111980.0,111970.0,0.1237055]
[1756315117423,0.04677022,111990.0,111980.0,0.0892876]
[1756315117622,0.11738022,111990.0,111980.0,0.56163271]
[1756315118222,0.08320022,111990.0,111980.0,0.56163271]
[1756315118423,0.04667022,111990.0,111980.0,0.92243271]
[1756315118823,0.04667022,111990.0,111980.0,1.75183271]
[1756315120420,0.04767022,111990.0,111980.0,1.75183271]
[1756315120823,0.04767022,111990.0,111980.0,0.92243271]
[1756315121126,0.14250022,111990.0,111980.0,1.75135271]
[1756315121721,0.14150022,111990.0,111980.0,1.75135271]
[1756315121918,0.11838022,111990.0,111980.0,1.75135271]
[1756315122322,0.14350022,111990.0,111980.0,1.75135271]
[1756315123026,0.16252022,111990.0,111980.0,1.75135271]
[1756315123424,0.16352022,111990.0,111980.0,1.75135271]
[1756315124325,0.13940022,111990.0,111980.0,1.75135271]
[1756315124520,0.16352022,111990.0,111980.0,0.4844976]
[1756315124827,0.16352022,111990.0,111980.0,1.75163271]
[1756315125122,0.16352022,111990.0,111980.0,1.75159271]
[1756315125420,0.16352022,111990.0,111980.0,0.92243271]
[1756315125730,0.61259982,111990.0,111980.0,0.9528176]
[1756315126522,0.52332022,111990.0,111980.0,0.9528176]
[1756315127428,0.52432022,111990.0,111980.0,0.9528176]
[1756315127921,0.52432022,111990.0,111980.0,0.1236976]
[1756315128128,1.05153493,111990.0,111980.0,0.9525376]
[1756315128619,0.0892876,111980.0,111970.0,0.1238055]
[1756315128813,0.0892955,111970.0,111960.0,0.12846207]
[1756315129019,1.03037061,111970.0,111960.0,0.97272207]
[1756315129219,0.5924355,111970.0,111960.0,0.97272207]
[1756315129421,0.50314,111970.0,111960.0,0.97272207]
[1756315130219,0.50314,111970.0,111960.0,1.41065718]
[1756315130220,0.11822,111970.0,111960.0,1.41065718]
[1756315130421,0.02849,111970.0,111960.0,1.77145718]
[1756315130621,0.0438,111980.0,111970.0,0.1237056]
[1756315130822,0.06502,111980.0,111970.0,0.56164071]
[1756315131017,0.0992,111980.0,111970.0,0.56164071]
[1756315131424,0.12332,111980.0,111970.0,0.56164071]
[1756315131626,0.50314,111980.0,111970.0,0.1237056]
[1756315132024,0.94107511,111980.0,111970.0,0.1237056]
[1756315132331,0.50414,111980.0,111970.0,0.1237056]
[1756315133321,0.50814,111980.0,111970.0,0.1237056]
[1756315133828,0.50914,111980.0,111970.0,0.1237056]
[1756315138523,0.50914,111980.0,111970.0,0.9336556]
[1756315138720,0.50914,111980.0,111970.0,0.9525456]
[1756315141532,0.50714,111980.0,111970.0,0.9525456]
[1756315141735,0.50614,111980.0,111970.0,0.9525456]
[1756315142030,0.05281,111980.0,111970.0,1.39048071]
[1756315142228,0.05281,111980.0,111970.0,1.75128071]
[1756315142431,0.003,111980.0,111970.0,2.00128071]
[1756315142928,0.003,111980.0,111970.0,2.57128071]
[1756315143330,0.03085,111980.0,111970.0,1.17244071]
[1756315143730,0.08746,111980.0,111970.0,2.00128071]
[1756315143930,0.14661,111980.0,111970.0,0.92244071]
[1756315144131,0.14561,111980.0,111970.0,1.75128071]
[1756315144535,0.14461,111980.0,111970.0,1.75128071]
[1756315146231,0.12011,111980.0,111970.0,1.75128071]
[1756315146424,0.02885,111980.0,111970.0,1.75128071]
[1756315146629,0.02885,111980.0,111970.0,2.26128071]
[1756315147332,0.001,111980.0,111970.0,2.51128071]
[1756315147728,0.001,111980.0,111970.0,2.00128071]
[1756315148032,0.02885,111980.0,111970.0,2.62128071]
[1756315148433,0.001,111980.0,111970.0,2.62128071]
[1756315148631,0.02795,111990.0,111980.0,0.0892876]
[1756315148933,0.02795,112000.0,111990.0,0.1244396]
[1756315149126,0.02785,112000.0,111990.0,1.75193471]
[1756315149534,0.02785,112000.0,111990.0,2.34193471]
[1756315149726,0.02795,112010.0,112000.0,0.1244316]
[1756315150038,0.02785,112010.0,112000.0,1.53316671]
[1756315150230,0.02785,112010.0,112000.0,1.75192671]
[1756315150430,0.07584,112010.0,112000.0,1.75188671]
[1756315150635,0.07584,112010.0,112000.0,2.30188671]
[1756315150838,0.02785,112010.0,112000.0,2.32188671]
[1756315151537,0.02785,112010.0,112000.0,1.75188671]
[1756315152038,0.02785,112010.0,112000.0,2.32188671]
[1756315152236,0.02885,112010.0,112000.0,0.92316671]
[1756315152625,0.02885,112010.0,112000.0,1.75184671]
[1756315153236,0.02885,112010.0,112000.0,1.75284671]
[1756315154037,0.02985,112010.0,112000.0,1.75184671]
[1756315154937,0.002,112010.0,112000.0,1.77173722]
[1756315155137,0.002,112010.0,112000.0,2.33173722]
[1756315155735,0.002,112010.0,112000.0,2.76967233]
[1756315156428,0.001,112010.0,112000.0,2.77067233]
[1756315156633,0.001,112010.0,112000.0,2.33273722]
[1756315156830,0.02885,112010.0,112000.0,1.77265722]
[1756315157238,0.02785,112010.0,112000.0,1.78161894]
[1756315157941,0.02785,112010.0,112000.0,1.78061894]
[1756315158739,0.02885,112010.0,112000.0,1.78061894]
[1756315158944,0.02885,112010.0,112000.0,2.40061894]
[1756315159147,0.02885,112010.0,112000.0,1.78061894]
[1756315160445,0.02885,112010.0,112000.0,2.30061894]
[1756315160646,0.02885,112010.0,112000.0,2.35061894]
[1756315160841,0.02885,112010.0,112000.0,2.31061894]
[1756315161447,0.02785,112010.0,112000.0,2.31061894]
[1756315162044,0.02885,112010.0,112000.0,2.31061894]
[1756315162346,0.001,112010.0,112000.0,2.74955405]
[1756315163046,0.02795,112020.0,112010.0,0.1244238]
[1756315163245,0.02785,112020.0,112010.0,0.92315891]
[1756315163542,0.02785,112020.0,112010.0,1.43315891]
[1756315163747,0.02785,112020.0,112010.0,0.92315891]
[1756315164449,0.04373,112020.0,112010.0,1.75159891]
[1756315164748,0.07684,112020.0,112010.0,1.75159891]
[1756315165449,0.14461,112020.0,112010.0,1.75159891]
[1756315165947,0.1125,112020.0,112010.0,1.75159891]
[1756315166147,0.14461,112020.0,112010.0,1.75159891]
[1756315167738,0.14461,112020.0,112010.0,0.92315891]
[1756315168142,0.14461,112020.0,112010.0,1.75155891]
[1756315168642,0.39461,112020.0,112010.0,0.9528238]
[1756315168847,0.39461,112020.0,112010.0,1.75155891]
[1756315169345,0.06803,112020.0,112010.0,1.75155891]
[1756315169641,0.10187,112020.0,112010.0,0.92315891]
[1756315169855,0.10187,112020.0,112010.0,1.3135838]
[1756315169856,0.14409,112020.0,112010.0,1.3135838]
[1756315170057,0.14409,112020.0,112010.0,1.75151891]
[1756315170256,0.39409,112020.0,112010.0,1.39071891]
[1756315171165,0.39409,112020.0,112010.0,0.9527838]
[1756315172065,0.39409,112020.0,112010.0,0.1244238]
[1756315172255,0.39409,112020.0,112010.0,0.9527838]
[1756315173465,0.39409,112020.0,112010.0,1.39071891]
[1756315174364,0.02885,112020.0,112010.0,1.75151891]
[1756315174566,0.001,112020.0,112010.0,1.75151891]
[1756315174865,0.02813,112020.0,112010.0,1.75151891]
[1756315175857,0.11878,112020.0,112010.0,0.1244238]
[1756315176058,0.06642,112020.0,112010.0,1.75147891]
[1756315177057,0.06642,112020.0,112010.0,0.92315891]
[1756315177253,0.06642,112020.0,112010.0,1.75147891]
[1756315177457,0.09971,112020.0,112010.0,1.75147891]
[1756315178665,0.06642,112020.0,112010.0,1.75147891]
[1756315180269,0.09971,112020.0,112010.0,1.75147891]
[1756315180470,0.06642,112020.0,112010.0,1.75147891]
[1756315182263,0.04327,112020.0,112010.0,1.75147891]
[1756315182461,0.08549,112020.0,112010.0,0.92315891]
[1756315182663,0.14337,112020.0,112010.0,1.75143891]
[1756315185373,0.14337,112020.0,112010.0,0.9527038]
[1756315185374,0.17027918,112020.0,112010.0,0.9527038]
[1756315185572,0.17027918,112020.0,112010.0,1.39063891]
[1756315187872,0.17027918,112020.0,112010.0,0.56235891]
[1756315188174,0.96901429,112020.0,112010.0,0.9526638]
[1756315189168,1.05827029,112020.0,112010.0,0.9526638]
[1756315189370,1.30827029,112020.0,112010.0,0.9175038]
[1756315189972,1.30827029,112020.0,112010.0,0.9331138]
[1756315190169,1.30827029,112020.0,112010.0,0.9520038]
[1756315190977,1.30827029,112020.0,112010.0,0.9331138]
[1756315191571,1.30827029,112020.0,112010.0,0.9520038]
[1756315193072,1.05827029,112020.0,112010.0,0.9520038]
[1756315193979,1.30827029,112020.0,112010.0,0.0892638]
[1756315194182,1.30827029,112020.0,112010.0,0.9331138]
[1756315194478,1.30827029,112020.0,112010.0,0.9520038]
[1756315195379,1.30827029,112020.0,112010.0,0.9175039]
[1756315196075,0.2316339,112010.0,112000.0,0.1238677]
[1756315196384,1.03036901,112010.0,112000.0,0.9519677]
[1756315196575,1.03036901,112010.0,112000.0,0.1237677]
[1756315196775,1.03036901,112010.0,112000.0,0.9330777]
[1756315197179,0.5924339,112010.0,112000.0,0.9519677]
[1756315197477,1.03036901,112010.0,112000.0,0.9529677]
[1756315197778,1.03036901,112010.0,112000.0,0.9539677]
[1756315198579,1.03036901,112010.0,112000.0,0.9529677]
[1756315198778,1.03336901,112010.0,112000.0,0.9529677]
[1756315199377,1.03336901,112010.0,112000.0,0.9184677]
[1756315199682,1.03536901,112010.0,112000.0,0.9174677]
[1756315199983,1.03536901,112010.0,112000.0,0.9336177]
[1756315200281,1.03536901,112010.0,112000.0,0.1054177]
[1756315200477,0.2307419,112000.0,111990.0,0.0001]
[1756315200678,0.2307498,111990.0,111980.0,0.1082726]
[1756315200877,1.02948491,111990.0,111980.0,0.86328]
[1756315201273,1.02948491,111990.0,111980.0,0.03504]
[1756315201477,0.2307581,111980.0,111970.0,0.9527161]
[1756315201684,1.02949321,111980.0,111970.0,0.9526161]
[1756315201986,0.5915581,111980.0,111970.0,0.9526161]
[1756315202483,0.50227,111980.0,111970.0,0.9526161]
[1756315202884,0.5915581,111980.0,111970.0,0.9526161]
[1756315203581,0.5935581,111980.0,111970.0,0.9526161]
[1756315203776,0.5935581,111980.0,111970.0,0.9536161]
[1756315203976,0.60252987,111980.0,111970.0,0.9536161]
[1756315204185,0.60252987,111980.0,111970.0,0.9526161]
[1756315204382,0.60552987,111980.0,111970.0,0.9526161]
[1756315207091,1.06136429,111980.0,111970.0,0.1243361]
[1756315207390,1.06136429,111980.0,111970.0,0.9526961]
[1756315208791,0.62342918,111980.0,111970.0,0.9526961]
[1756315208993,1.06136429,111980.0,111970.0,0.9526961]
[1756315209292,0.62342918,111980.0,111970.0,0.9526961]
[1756315209989,0.62342918,111980.0,111970.0,0.1243361]
[1756315210297,1.06136429,111980.0,111970.0,0.9527361]
[1756315213498,0.62342918,111980.0,111970.0,0.9527361]
[1756315213792,0.59115918,111980.0,111970.0,0.9527361]
[1756315213997,0.62342918,111980.0,111970.0,0.9527361]
[1756315214595,1.06136429,111980.0,111970.0,0.03504]
[1756315214789,1.06136429,111980.0,111970.0,0.01615]
[1756315214986,0.2307661,111970.0,111960.0,0.1244367]
[1756315215288,1.02950121,111970.0,111960.0,0.9527841]
[1756315216298,1.03150121,111970.0,111960.0,0.9527841]
[1756315216487,1.03250121,111970.0,111960.0,0.9527841]
[1756315216686,0.473,111970.0,111960.0,0.9527841]
[1756315216992,0.5203961,111970.0,111960.0,1.39071921]
[1756315217199,0.5213961,111970.0,111960.0,1.39071921]
[1756315217388,0.5546661,111970.0,111960.0,1.39071921]
[1756315217690,0.46537,111970.0,111960.0,1.39071921]
[1756315217895,0.5965661,111970.0,111960.0,1.39075921]
[1756315218505,0.62355088,111970.0,111960.0,1.39075921]
[1756315219601,0.62155088,111970.0,111960.0,1.39075921]
[1756315219901,0.62255088,111970.0,111960.0,1.39075921]
[1756315220093,0.53325478,111970.0,111960.0,1.39075921]
[1756315220399,0.62355088,111970.0,111960.0,1.39075921]
[1756315220602,0.54938088,111970.0,111960.0,1.39075921]
[1756315220899,0.60509088,111970.0,111960.0,1.39075921]
[1756315221302,0.62355088,111970.0,111960.0,0.56227921]
[1756315221504,0.62355088,111970.0,111960.0,1.39079921]
[1756315222498,0.51081478,111970.0,111960.0,1.39079921]
[1756315222699,0.47854478,111970.0,111960.0,1.39079921]
[1756315223095,0.56784088,111970.0,111960.0,1.39079921]
[1756315223297,0.47854478,111970.0,111960.0,1.39079921]
[1756315223492,0.11774478,111970.0,111960.0,1.39079921]
[1756315223800,0.62255088,111970.0,111960.0,1.39079921]
[1756315224001,0.62155088,111970.0,111960.0,1.39079921]
[1756315224303,0.45808478,111970.0,111960.0,1.39079921]
[1756315224501,0.45808478,111970.0,111960.0,1.64079921]
[1756315224502,0.02998478,111970.0,111960.0,1.64079921]
[1756315224691,0.03002389,111970.0,111960.0,1.64079921]
[1756315224896,0.05953389,111970.0,111960.0,1.64079921]
[1756315225298,0.03002389,111970.0,111960.0,2.00159921]
[1756315225497,0.003,111970.0,111960.0,2.00159921]
[1756315225695,0.003,111970.0,111960.0,2.93953432]
[1756315225905,0.04750931,111980.0,111970.0,0.1054456]
[1756315226105,0.04740931,111980.0,111970.0,0.92007071]
[1756315226506,0.01789931,111980.0,111970.0,1.17007071]
[1756315227000,0.01789931,111980.0,111970.0,1.77913825]
[1756315227307,0.01789931,111980.0,111970.0,1.17913825]
[1756315227609,0.01889931,111980.0,111970.0,1.17913825]
[1756315228097,0.03846895,111990.0,111980.0,0.0892877]
[1756315228301,0.04766078,112000.0,111990.0,0.1213197]
[1756315228599,0.0746135,112000.0,111990.0,0.55925481]
[1756315229200,0.1123235,112000.0,111990.0,0.55925481]
[1756315229407,0.1888235,112000.0,111990.0,1.38773481]
[1756315229601,0.2780952,112000.0,111990.0,0.9497997]
[1756315229799,0.2780952,112000.0,111990.0,0.1213197]
[1756315230003,1.32683031,112000.0,111990.0,0.9339097]
[1756315230312,1.32683031,112000.0,111990.0,0.84463]
[1756315230602,1.24926459,112000.0,111990.0,0.82852]
[1756315230807,1.33697459,112000.0,111990.0,0.84406]
[1756315231007,1.33797459,112000.0,111990.0,0.84406]
[1756315231209,1.33697459,112000.0,111990.0,0.84406]
[1756315231402,1.33797459,112000.0,111980.0,0.0001]
[1756315231603,1.03318481,111990.0,111980.0,0.9336077]
[1756315231804,0.17222272,111990.0,111980.0,0.9493977]
[1756315231999,0.17222272,111990.0,111980.0,1.38733281]
[1756315232198,0.11418272,111990.0,111980.0,1.74813281]
[1756315232507,0.07266272,111990.0,111980.0,1.74813281]
[1756315232803,0.05672272,111990.0,111980.0,1.74913281]
[1756315233408,0.02967,111990.0,111980.0,1.74913281]
[1756315233708,0.05671148,111990.0,111980.0,1.74913281]
[1756315234112,0.05671148,111990.0,111980.0,1.63833281]
[1756315234307,0.05771148,111990.0,111980.0,1.99913281]
[1756315234508,0.03067,111990.0,111980.0,1.99913281]
[1756315234809,0.02967,111990.0,111980.0,1.99913281]
[1756315235507,0.44633078,112000.0,111990.0,0.1207097]
[1756315235814,0.11246667,112000.0,111990.0,0.55864481]
[1756315236011,0.14552667,112000.0,111990.0,0.55864481]
[1756315236216,0.19025667,112000.0,111990.0,0.55864481]
[1756315236913,0.16422078,112000.0,111990.0,0.55864481]
[1756315237413,0.16522078,112000.0,111990.0,0.55864481]
[1756315237609,0.14024078,112000.0,111990.0,0.55864481]
[1756315237806,0.14024078,112000.0,111990.0,1.38808481]
[1756315238110,0.10718078,112000.0,111990.0,1.38808481]
[1756315238310,0.04972078,112000.0,111990.0,1.38808481]
[1756315238522,0.04972078,112000.0,111990.0,1.74888481]
[1756315238523,0.02005078,112000.0,111990.0,1.74888481]
[1756315238710,0.04972078,112000.0,111990.0,1.74888481]
[1756315239211,0.06566078,112000.0,111990.0,1.74860481]
[1756315239411,0.06466078,112000.0,111990.0,0.91944481]
[1756315239612,0.16322078,112000.0,111990.0,0.91944481]
[1756315239916,0.16322078,112000.0,111990.0,1.38780481]
[1756315240519,0.16322078,112000.0,111990.0,1.38804481]
[1756315240716,0.16322078,112000.0,111990.0,0.55864481]
[1756315240910,0.16322078,112000.0,111990.0,0.9503097]
[1756315241116,0.16422078,112000.0,111990.0,0.9503097]
[1756315241316,0.52602078,112000.0,111990.0,0.9503097]
[1756315241516,0.52602078,112000.0,111990.0,1.38824481]
[1756315241819,0.52602078,112000.0,111990.0,1.38820481]
[1756315242008,1.05322729,112000.0,111990.0,0.1207097]
[1756315242213,0.61529218,112000.0,111990.0,0.9501097]
[1756315242418,1.05322729,112000.0,111990.0,0.9501097]
[1756315242613,0.52602078,112000.0,111990.0,0.9501097]
[1756315244018,1.05322709,112000.0,111990.0,0.9501097]
[1756315244215,1.30322709,112000.0,111990.0,0.9184397]
[1756315244420,0.2344487,111990.0,111980.0,0.1049267]
[1756315244621,0.2344567,111980.0,111970.0,0.1208182]
[1756315244920,0.5952567,111980.0,111970.0,0.9499582]
[1756315245221,0.50597,111980.0,111970.0,0.9499582]
[1756315245820,0.50597,111980.0,111970.0,0.9501582]
[1756315246220,1.03319251,111980.0,111970.0,0.9499982]
[1756315246409,0.94390511,111980.0,111970.0,0.9499982]
[1756315246613,0.94390511,111980.0,111970.0,0.9519982]
[1756315246810,0.5952574,111980.0,111970.0,0.9519982]
[1756315247114,1.28319251,111980.0,111970.0,0.1227182]
[1756315247317,1.28319251,111980.0,111970.0,0.1237182]
[1756315247518,1.28319251,111980.0,111970.0,0.003]
[1756315247720,1.3283063,111980.0,111970.0,0.003]
[1756315248021,2.1583863,111980.0,111970.0,0.002]
[1756315248217,0.0892954,111970.0,111960.0,0.0001]
[1756315248425,0.14517,111960.0,111950.0,0.9523548]
[1756315248721,0.94390511,111960.0,111950.0,0.9522548]
[1756315249116,1.03320851,111960.0,111950.0,0.9522548]
[1756315249316,1.04202007,111960.0,111950.0,0.9554448]
[1756315249711,0.60408486,111960.0,111950.0,0.9554448]
[1756315249917,0.60508486,111960.0,111950.0,0.9554448]
[1756315250516,0.50697,111960.0,111950.0,1.39337991]
[1756315250720,0.5962734,111960.0,111950.0,1.39337991]
[1756315250918,0.03167,111960.0,111950.0,1.41303596]
[1756315251122,0.0001,111970.0,111960.0,0.1207334]
[1756315251326,0.12552,111980.0,111970.0,0.1207255]
[1756315251525,0.10044,111980.0,111970.0,1.38826061]
[1756315251922,0.02967,111980.0,111970.0,1.38826061]
[1756315252619,0.03267,111980.0,111970.0,1.38826061]
[1756315253018,0.14817,111980.0,111970.0,1.38826061]
[1756315253224,0.12119,111980.0,111970.0,1.38826061]
[1756315253422,0.14617,111980.0,111970.0,1.38826061]
[1756315253623,0.12119,111980.0,111970.0,1.38826061]
[1756315253819,0.12419,111980.0,111970.0,1.38826061]
[1756315254525,0.03367,111980.0,111970.0,1.38826061]
[1756315255527,0.03367,111980.0,111970.0,1.46422146]
[1756315255921,0.03067,111980.0,111970.0,1.46422146]
[1756315256520,0.10144,111980.0,111970.0,1.46402146]
[1756315256834,0.10044,111980.0,111970.0,1.46402146]
[1756315257124,0.06738,111980.0,111970.0,1.46402146]
[1756315257324,0.02967,111980.0,111970.0,1.46402146]
[1756315257927,0.04561,111980.0,111970.0,0.63462146]
[1756315258120,0.10044,111980.0,111970.0,1.46418146]
[1756315258522,0.06738,111980.0,111970.0,1.46418146]
[1756315258722,0.02967,111980.0,111970.0,1.46418146]
[1756315259231,0.11077,111980.0,111970.0,0.1207255]
[1756315259530,0.50595,111980.0,111970.0,0.9502455]
[1756315260226,0.50695,111980.0,111970.0,0.9502455]
[1756315260628,0.14615,111980.0,111970.0,0.9502455]
[1756315261028,0.14615,111980.0,111970.0,1.46414146]
[1756315261230,0.12242,111980.0,111970.0,1.46414146]
[1756315261424,0.14615,111980.0,111970.0,1.46414146]
[1756315261626,0.14615,111980.0,111970.0,0.9502455]
[1756315261933,0.14615,111980.0,111970.0,1.46414146]
[1756315262136,0.14715,111980.0,111970.0,1.46414146]
[1756315262431,0.12342,111980.0,111970.0,1.46414146]
[1756315262731,0.12242,111980.0,111970.0,1.46414146]
[1756315262933,0.14615,111980.0,111970.0,1.46414146]
[1756315263132,0.001,111980.0,111970.0,1.46414146]
[1756315263333,0.02855,111980.0,111970.0,1.46414146]
[1756315263734,0.02755,111980.0,111970.0,1.46414146]
[1756315264534,0.02755,111980.0,111970.0,1.82494146]
[1756315264929,0.04405,111990.0,111980.0,0.1213475]
[1756315265222,0.04395,111990.0,111980.0,0.99604346]
[1756315265423,0.02755,111990.0,111980.0,0.99604346]
[1756315266332,0.05476028,112000.0,111990.0,0.1213395]
[1756315266534,0.05466028,112000.0,111990.0,1.82483546]
[1756315266728,0.04560078,112000.0,111990.0,1.82483546]
[1756315267534,0.04660078,112000.0,111990.0,1.89539907]
[1756315268928,0.04560078,112000.0,111990.0,1.89639907]
[1756315269128,0.08898764,112000.0,111990.0,1.89615907]
[1756315269334,0.07998078,112000.0,111990.0,1.89615907]
[1756315269936,0.04560078,112000.0,111990.0,1.89715907]
[1756315270430,0.04660078,112000.0,111990.0,1.06759907]
[1756315270635,0.04660078,112000.0,111990.0,1.89627907]
[1756315271025,0.04660078,112000.0,111990.0,1.06759907]
[1756315271230,0.08098078,112000.0,111990.0,1.89671907]
[1756315271630,0.06293,112000.0,111990.0,1.89671907]
[1756315272033,0.06193,112000.0,111990.0,1.89671907]
[1756315272231,0.05128,112000.0,111990.0,1.06759907]
[1756315272433,0.08566,112000.0,111990.0,1.89571907]
[1756315272639,0.08666,112000.0,111990.0,1.89571907]
[1756315272838,0.02855,112000.0,111990.0,1.89571907]
[1756315273031,0.02755,112000.0,111990.0,1.89571907]
[1756315273637,0.02855,112000.0,111990.0,1.89571907]
[1756315274436,0.02855,112000.0,111990.0,1.89531907]
[1756315274641,0.08666,112000.0,111990.0,1.89531907]
[1756315275032,0.08566,112000.0,111990.0,1.06659907]
[1756315275233,0.06193,112000.0,111990.0,1.89531907]
[1756315275938,0.02755,112000.0,111990.0,1.89531907]
[1756315276945,0.02755,112000.0,111990.0,1.89503907]
[1756315277443,0.02755,112000.0,111990.0,1.81950357]
[1756315277944,0.0367571,112010.0,112000.0,0.01589]
[1756315278242,0.02765,112020.0,112010.0,0.1213236]
[1756315278444,0.02755,112020.0,112010.0,1.38812406]
[1756315279137,0.02755,112020.0,112010.0,1.74892406]
[1756315280240,0.02755,112020.0,112010.0,1.74888406]
[1756315281943,0.3787986,112030.0,112010.0,1.74888406]
[1756315282145,0.0455486,112030.0,112020.0,0.47042046]
[1756315282348,0.0454486,112030.0,112020.0,0.47042046]
[1756315282542,0.0454486,112030.0,112020.0,0.55967606]
[1756315282747,0.0618486,112030.0,112020.0,0.55967606]
[1756315283138,0.1174486,112030.0,112020.0,0.55967606]
[1756315283342,0.1174486,112030.0,112020.0,1.38803606]
[1756315284244,0.1411786,112030.0,112020.0,1.38803606]
[1756315284647,0.1174486,112030.0,112020.0,1.38803606]
[1756315284951,0.1017786,112030.0,112020.0,1.38803606]
[1756315285154,0.0464486,112030.0,112020.0,1.38803606]
[1756315285455,0.0474486,112030.0,112020.0,1.74883606]
[1756315286663,0.0464486,112030.0,112020.0,1.74883606]
[1756315286861,0.02855,112030.0,112020.0,0.92047606]
[1756315287265,0.02855,112030.0,112020.0,1.74875606]
[1756315287562,0.02755,112030.0,112020.0,1.74875606]
[1756315288463,0.02755,112030.0,112020.0,0.92047606]
[1756315288766,0.14053,112030.0,112020.0,0.92047606]
[1756315289159,0.14053,112030.0,112020.0,1.74871606]
[1756315289563,0.14053,112030.0,112020.0,1.38791606]
[1756315290863,0.14253,112030.0,112020.0,0.55967606]
[1756315291167,0.14253,112030.0,112020.0,1.38791606]
[1756315292662,0.14253,112030.0,112020.0,1.38787606]
[1756315293470,0.11982,112030.0,112020.0,1.38787606]
[1756315293672,0.02955,112030.0,112020.0,1.38787606]
[1756315294769,0.02855,112030.0,112020.0,1.38787606]
[1756315295072,0.02855,112030.0,112020.0,1.74867606]
[1756315295568,0.02755,112030.0,112020.0,1.74867606]
[1756315297970,0.12029,112030.0,112020.0,1.38783606]
[1756315298172,0.06644,112030.0,112020.0,1.38783606]
[1756315298874,0.06644,112030.0,112020.0,1.38779606]
[1756315299672,0.10038,112030.0,112020.0,1.38779606]
[1756315300074,0.10138,112030.0,112020.0,1.38779606]
[1756315300468,0.10238,112030.0,112020.0,1.38779606]
[1756315300773,0.10238,112030.0,112020.0,0.55967606]
[1756315300972,0.145,112030.0,112020.0,0.55967606]
[1756315301169,0.145,112030.0,112020.0,1.38775606]
[1756315301672,0.5058,112030.0,112020.0,1.38775606]
[1756315301874,0.2339354,112020.0,112010.0,0.1052496]
[1756315302077,0.67229586,112020.0,112010.0,0.9496296]
[1756315302376,0.14468,112020.0,112010.0,0.9496296]
[1756315303671,0.02923,112020.0,112010.0,1.38799006]